Workbook

Sheet Лист1
A1: Школа | C1: МБОУ СОШ "с. Урманаево" | F1: Утвердил: | G1: должность | H1: директор
A2: Типовое примерное меню приготавливаемых блюд | G2: фамилия | H2: Хайбуллина Г.А.
A3: Возрастная категория | E3: 7-11 лет | G3: дата | H3: 1 | I3: 9 | J3: 2023
H4: день | I4: месяц | J4: год
A5: Неделя | B5: День недели | C5: Прием пищи | D5: Раздел меню | E5: Блюда | F5: Вес блюда, г | G5: Белки | H5: Жиры | I5: Углеводы | J5: Калорийность | K5: № рецептуры | L5: Цена
A6: 1 | B6: 1 | C6: Завтрак | D6: гор.блюдо | E6: Борщ из св.капусты с картофелем, с мясными фрикадельками,со сметаной | F6: 266 | G6: 4.13 | H6: 6.96 | I6: 11.19 | J6: 133.42 | K6: 82
D8: гор.напиток | E8: Кисель | F8: 200 | G8: 0.6 | H8: 0.1 | I8: 30.2 | J8: 123.6
D9: хлеб | E9: Хлеб ржаной | F9: 30 | G9: 1.98 | H9: 0.36 | I9: 11.88 | J9: 59.40
D10: фрукты
D11: 1 блюдо
D12: напиток | L12: 22.5
D13: итого | F13: =SUM(F6:F12) -> 496 | G13: =SUM(G6:G12) -> 6.70667 | H13: 7.41953 | I13: 53.27445 | J13: 316.421 | L13: =SUM(L6:L12) -> 22.5
A14: =A6 -> 1 | B14: =B6 -> 1 | C14: Обед | D14: закуска | E14: салат из моркови с яблоком | F14: 60 | G14: 0.64 | H14: 0.1 | I14: 5.11 | J14: 23.94 | K14: 59
D15: 1 блюдо
D16: 2 блюдо | E16: котлетадомашняя из говядины | F16: 90 | G16: 8.15 | H16: 10.5 | I16: 8.1 | J16: 199.57 | K16: 271
D17: гарнир | E17: макароны отварные с сливочным маслом | F17: 155 | G17: 5.12 | H17: 4.53 | I17: 31.99 | J17: 189.3 | K17: 203
D18: напиток | E18: компт из сухофруктов | F18: 200 | G18: 0.66 | H18: 0.09 | I18: 22.03 | J18: 92.9 | K18: 349
D19: хлеб бел.
D20: хлеб черн. | E20: хлеб ржаной | F20: 20 | G20: 1.32 | H20: 0.54 | I20: 17.82 | J20: 89.1
E21: печенье | F21: 40 | G21: 3.7 | H21: 3.7 | I21: 2.85 | J21: 21.5
L22: 64.19
D23: итого | F23: =SUM(F14:F22) -> 565 | G23: =SUM(G14:G22) -> 19.59 | H23: 19.46 | I23: 87.9 | J23: 616.31 | L23: =SUM(L14:L22) -> 64.19
A24: =A6 -> 1 | B24: =B6 -> 1 | C24: Итого за день: | F24: =F13+F23 -> 1061 | G24: =G13+G23 -> 26.29667 | H24: 26.87953 | I24: 141.17445 | J24: 932.731 | L24: =L13+L23 -> 86.69
A25: 1 | B25: 2 | C25: Завтрак | D25: гор.блюдо | E25: Рассольник Ленинградский с мясом птицы, со сметаной | F25: 265 | G25: 2.41 | H25: 7.34 | I25: 12.52 | J25: 131.55
D27: гор.напиток | E27: Компот из свежих яблок | F27: 200 | G27: 0.16 | H27: 0.16 | I27: 13.91 | J27: 58.74 | K27: 342
D28: хлеб | E28: Хлеб ржаной | F28: 30 | G28: 1.98 | H28: 0.36 | I28: 11.88 | J28: 59.40
D29: фрукты
L31: 22.5
D32: итого | F32: =SUM(F25:F31) -> 495 | G32: =SUM(G25:G31) -> 4.5475 | H32: =SUM(H25:H31) -> 7.86 | I32: =SUM(I25:I31) -> 38.31 | J32: =SUM(J25:J31) -> 249.69 | L32: 22.5
A33: =A25 -> 1 | B33: =B25 -> 2 | C33: Обед | D33: закуска | E33: Плоды и ягоды свежие (апельсин) | F33: 100 | G33: 0.8 | H33: 0.20 | I33: 8.1 | J33: 43.0
D34: 1 блюдо
D35: 2 блюдо | E35: Гуляш из говядины | F35: 100 | G35: 10.45 | H35: 10.71 | I35: 9.83 | J35: 144.26 | K35: 260
D36: гарнир | E36: Каша гречневая рассыпчатая с маслом сливочным | F36: 153 | G36: 4.59 | H36: 5.47 | I36: 27.76 | J36: 193.80 | K36: 171
D37: напиток | E37: Чай с сахаром, с лимоном | F37: 200 | G37: 0.13 | H37: 0.02 | I37: 10.20 | J37: 42.00 | K37: 377
D38: хлеб бел.
D39: хлеб черн. | E39: Хлеб ржаной | F39: 20 | G39: 1.32 | H39: 0.54 | I39: 17.82 | J39: 89.10
E40: Пряник | F40: 35 | G40: 2.07 | H40: 1.85 | I40: 14.25 | J40: 104.1
L41: 64.19
D42: итого | F42: =SUM(F33:F41) -> 508 | G42: =SUM(G33:G41) -> 19.36 | H42: =SUM(H33:H41) -> 18.79 | I42: =SUM(I33:I41) -> 87.91 | J42: =SUM(J33:J41) -> 616.26 | L42: 64.19
A43: =A25 -> 1 | B43: =B25 -> 2 | C43: Итого за день: | F43: =F32+F42 -> 1003 | G43: =G32+G42 -> 23.9075 | H43: =H32+H42 -> 26.65 | I43: =I32+I42 -> 126.22 | J43: =J32+J42 -> 865.95 | L43: 86.69
A44: 1 | B44: 3 | C44: Завтрак | D44: гор.блюдо | E44: Суп картофельный с горохом с мясными фрикадельками | F44: 261 | G44: 7.68 | H44: 6.56 | I44: 16.62 | J44: 169.82 | K44: 119
D46: гор.напиток | E46: Напиток из сухофруктов | F46: 200 | G46: 0.66 | H46: 0.09 | I46: 22.03 | J46: 92.90 | K46: 348
D47: хлеб | E47: Хлеб ржаной | F47: 30 | G47: 1.98 | H47: 0.36 | I47: 11.88 | J47: 59.40
D48: фрукты
L50: 22.5
D51: итого | F51: =SUM(F44:F50) -> 491 | G51: =SUM(G44:G50) -> 10.32617 | H51: =SUM(H44:H50) -> 7.00953 | I51: =SUM(I44:I50) -> 50.52695 | J51: =SUM(J44:J50) -> 322.121 | L51: 22.5
A52: =A44 -> 1 | B52: =B44 -> 3 | C52: Обед | D52: закуска | E52: Салат из отварной свеклы | F52: 60 | G52: 0.84 | H52: 3.61 | I52: 4.96 | J52: 55.68
D53: 1 блюдо
D54: 2 блюдо | E54: Птица запеченная с томатным соусом | F54: 110 | G54: 12.00 | H54: 10.64 | I54: 8.60 | J54: 195.10 | K54: 293
D55: гарнир | E55: Рис отварной рассыпчатый с маслом сливочным | F55: 155 | G55: 3.74 | H55: 4.15 | I55: 39.23 | J55: 209.00
D56: напиток | E56: Чай с сахаром | F56: 200 | G56: 0.07 | H56: 0.02 | I56: 10.00 | J56: 40.00 | K56: 376
D57: хлеб бел. | E57: Хлеб пшеничный | F57: 20 | G57: 1.520 | H57: 0.160 | I57: 9.840 | J57: 47
D58: хлеб черн. | E58: Хлеб ржаной | F58: 20 | G58: 1.32 | H58: 0.24 | I58: 7.92 | J58: 39.60
L60: 64.19
D61: итого | F61: =SUM(F52:F60) -> 565 | G61: =SUM(G52:G60) -> 19.4972 | H61: =SUM(H52:H60) -> 18.8178 | I61: =SUM(I52:I60) -> 80.5496 | J61: =SUM(J52:J60) -> 586.38 | L61: 64.19
A62: =A44 -> 1 | B62: =B44 -> 3 | C62: Итого за день: | F62: =F51+F61 -> 1056 | G62: =G51+G61 -> 29.82337 | H62: =H51+H61 -> 25.82733 | I62: =I51+I61 -> 131.07655 | J62: =J51+J61 -> 908.501 | L62: 86.69
A63: 1 | B63: 4 | C63: Завтрак | D63: гор.блюдо | E63: Суп из овощей с мясными фрикадельками, со сметаной | F63: 266 | G63: 4.65 | H63: 7.61 | I63: 9.30 | J63: 132.98 | K63: 99
D65: гор.напиток | E65: Компот из цитрусов | F65: 200 | G65: 0.45 | H65: 0.10 | I65: 33.99 | J65: 141.20 | K65: 346
D66: хлеб | E66: Хлеб ржаной | F66: 30 | G66: 1.98 | H66: 0.36 | I66: 11.88 | J66: 59.40
D67: фрукты
L69: 22.5
D70: итого | F70: =SUM(F63:F69) -> 496 | G70: =SUM(G63:G69) -> 7.08 | H70: =SUM(H63:H69) -> 8.07 | I70: =SUM(I63:I69) -> 55.17 | J70: =SUM(J63:J69) -> 333.58 | L70: 22.5
A71: =A63 -> 1 | B71: =B63 -> 4 | C71: Обед | D71: закуска | E71: Салат из белокочанной капусты | F71: 60 | G71: 0.79 | H71: 1.95 | I71: 3.88 | J71: 36.24 | K71: 45
D72: 1 блюдо
D73: 2 блюдо | E73: Рыба, тушеная в томате с овощами | F73: 100 | G73: 9.15 | H73: 5.62 | I73: 7.80 | J73: 105.00 | K73: 229
D74: гарнир | E74: Пюре картофельное | F74: 180 | G74: =G73*180/155 -> 10.63 | H74: =H73*180/155 -> 6.53 | I74: 9.06 | J74: 121.94 | K74: 312
D75: напиток | E75: Компот из свежих яблок | F75: 200 | G75: 0.16 | H75: 0.16 | I75: 13.91 | J75: 58.74 | K75: 342
D76: хлеб бел. | E76: Хлеб пшеничный | F76: 20 | G76: 1.52 | H76: 0.16 | I76: 9.84 | J76: 47.00
D77: хлеб черн. | E77: Хлеб ржаной | F77: 20 | G77: 1.32 | H77: 0.24 | I77: 7.92 | J77: 39.60
L79: 64.19
D80: итого | F80: =SUM(F71:F79) -> 480 | G80: =SUM(G71:G79) -> 23.56300645 | H80: =SUM(H71:H79) -> 14.65585161 | I80: =SUM(I71:I79) -> 52.40766452 | J80: =SUM(J71:J79) -> 408.5154839 | L80: 64.19
A81: =A63 -> 1 | B81: =B63 -> 4 | C81: Итого за день: | F81: =F70+F80 -> 976 | G81: =G70+G80 -> 30.64300645 | H81: =H70+H80 -> 22.72585161 | I81: =I70+I80 -> 107.5776645 | J81: =J70+J80 -> 742.0954839 | L81: 86.69
A82: 1 | B82: 5 | C82: Завтрак | D82: гор.блюдо | E82: Суп картофельный с мясом птицы | F82: 260 | G82: 5.42 | H82: 3.39 | I82: 16.87 | J82: 130.80 | K82: 97
D84: гор.напиток | E84: Кисель | F84: 200 | G84: 0.60 | H84: 0.10 | I84: 30.20 | J84: 123.60
D85: хлеб | E85: Хлеб ржаной | F85: 30 | G85: 1.98 | H85: 0.36 | I85: 11.88 | J85: 59.40
D86: фрукты
L88: 22.5
D89: итого | F89: =SUM(F82:F88) -> 490 | G89: =SUM(G82:G88) -> 8.0025 | H89: =SUM(H82:H88) -> 3.8475 | I89: =SUM(I82:I88) -> 58.95 | J89: =SUM(J82:J88) -> 313.8 | L89: 22.5
A90: =A82 -> 1 | B90: =B82 -> 5 | C90: Обед | D90: закуска | E90: Салат из моркови с сахаром | F90: 60 | G90: 0.74 | H90: 0.06 | I90: 6.58 | J90: 49.02 | K90: 62
D91: 1 блюдо
D92: 2 блюдо | E92: Котлеты говяжьи в томатном соусе | F92: 100 | G92: 9.54 | H92: 12.90 | I92: 8.75 | J92: 189.00 | K92: 271
D93: гарнир | E93: Гороховое пюре | F93: 180 | G93: =G92*180/153 -> 11.22 | H93: =H92*180/153 -> 15.18 | I93: 10.29 | J93: 222.35 | K93: 199
D94: напиток | E94: Чай с сахаром | F94: 200 | G94: 0.07 | H94: 0.02 | I94: 10.00 | J94: 40.00 | K94: 376
D95: хлеб бел. | E95: Хлеб пшеничный | F95: 20 | G95: 1.52 | H95: 0.16 | I95: 9.84 | J95: 47.00
D96: хлеб черн. | E96: Хлеб ржаной | F96: 20 | G96: 1.32 | H96: 0.24 | I96: 7.92 | J96: 39.60
L98: 64.19
D99: итого | F99: =SUM(F90:F98) -> 580 | G99: =SUM(G90:G98) -> 24.41332941 | H99: =SUM(H90:H98) -> 28.55287059 | I99: =SUM(I90:I98) -> 53.38411765 | J99: =SUM(J90:J98) -> 586.9729412 | L99: 64.19
A100: =A82 -> 1 | B100: =B82 -> 5 | C100: Итого за день: | F100: =F89+F99 -> 1070 | G100: =G89+G99 -> 32.41582941 | H100: =H89+H99 -> 32.40037059 | I100: =I89+I99 -> 112.3341176 | J100: =J89+J99 -> 900.7729412 | L100: 86.69
A101: 2 | B101: 1 | C101: Завтрак | D101: гор.блюдо | E101: Щи из свежей капусты с картофелем с мясными фрикадельками сметаной | F101: 266 | G101: 4.09 | H101: 6.99 | I101: 8.16 | J101: 119.42 | K101: 88
D103: гор.напиток | E103: Напиток из изюма | F103: 200 | G103: 0.44 | H103: 0.02 | I103: 27.76 | J103: 113.00 | K103: 394
D104: хлеб | E104: Хлеб ржаной | F104: 30 | G104: 1.98 | H104: 0.36 | I104: 11.88 | J104: 59.40
D105: фрукты
L107: 22.5
D108: итого | F108: =SUM(F101:F107) -> 496 | G108: =SUM(G101:G107) -> 6.50917 | H108: 7.36953 | I108: 47.80445 | J108: 291.821 | L108: =SUM(L101:L107) -> 22.5
A109: =A101 -> 2 | B109: =B101 -> 1 | C109: Обед | D109: закуска | E109: Плоды и ягоды свежие (яблоки) | F109: 100 | G109: 0.4 | H109: 0.40 | I109: 9.8 | J109: 47.0
D110: 1 блюдо
D111: 2 блюдо | E111: Птица запеченная | F111: 100 | G111: 9.87 | H111: 17.72 | I111: 0.00 | J111: 210.40 | K111: 293
D112: гарнир | E112: Макаронные изделия отварные с маслом сливочным | F112: 183 | G112: 6.10 | H112: 3.40 | I112: 38.22 | J112: 222.60 | K112: 203
D113: напиток | E113: Чай с сахаром | F113: 200 | G113: 0.07 | H113: 0.02 | I113: 10.00 | J113: 40.00 | K113: 376
D114: хлеб бел. | E114: Хлеб пшеничный | F114: 20 | G114: 1.52 | H114: 0.16 | I114: 9.84 | J114: 47.00
D115: хлеб черн. | E115: Хлеб ржаной | F115: 20 | G115: 1.32 | H115: 0.24 | I115: 7.92 | J115: 39.60
L117: 64.19
D118: итого | F118: =SUM(F109:F117) -> 340 | G118: =SUM(G109:G117) -> 19.28 | H118: 21.94 | I118: 75.78 | J118: 606.6 | L118: =SUM(L109:L117) -> 64.19
A119: =A101 -> 2 | B119: =B101 -> 1 | C119: Итого за день: | F119: =F108+F118 -> 836 | G119: =G108+G118 -> 25.78917 | H119: =H108+H118 -> 29.30953 | I119: =I108+I118 -> 123.58445 | J119: =J108+J118 -> 898.421 | L119: 86.69
A120: 2 | B120: 2 | C120: Завтрак | D120: гор.блюдо | E120: Суп картофельный с вермишелью с мясом птицы | F120: 260 | G120: 5.59 | H120: 7.86 | I120: 16.71 | J120: 159.32 | K120: 117
D122: гор.напиток | E122: Компот из свежих яблок | F122: 200 | G122: 0.16 | H122: 0.16 | I122: 13.91 | J122: 58.74 | K122: 342
D123: хлеб | E123: Хлеб ржаной | F123: 30 | G123: 1.98 | H123: 0.36 | I123: 11.88 | J123: 59.40
D124: фрукты
L126: 22.5
D127: итого | F127: =SUM(F120:F126) -> 490 | G127: =SUM(G120:G126) -> 7.73 | H127: 8.38 | I127: 42.5 | J127: 277.46 | L127: =SUM(L120:L126) -> 22.5
A128: =A120 -> 2 | B128: =B120 -> 2 | C128: Обед | D128: закуска | E128: Салат из свежей капусты с морковью | F128: 60 | G128: 0.79 | H128: 1.95 | I128: 3.88 | J128: 36.24 | K128: 45
D129: 1 блюдо
D130: 2 блюдо | E130: Плов из говядины с рисом | F130: 250 | G130: 18.97 | H130: 20.36 | I130: 54.79 | J130: 509.83 | K130: 265
D131: гарнир
D132: напиток | E132: Чай с сахаром,с яблоком | F132: 200 | G132: 0.11 | H132: 0.06 | I132: 10.99 | J132: 45.05 | K132: 376
D133: хлеб бел. | E133: Хлеб пшеничный | F133: 20 | G133: 1.52 | H133: 0.16 | I133: 9.84 | J133: 47.00
D134: хлеб черн. | E134: Хлеб ржаной | F134: 25 | G134: 1.65 | H134: 0.30 | I134: 9.90 | J134: 49.50
L136: 64.19
D137: итого | F137: =SUM(F128:F136) -> 555 | G137: =SUM(G128:G136) -> 23.03886667 | H137: 22.8294 | I137: 89.3996 | J137: 687.62 | L137: =SUM(L128:L136) -> 64.19
A138: =A120 -> 2 | B138: =B120 -> 2 | C138: Итого за день: | F138: =F127+F137 -> 1045 | G138: =G127+G137 -> 30.76886667 | H138: =H127+H137 -> 31.2094 | I138: =I127+I137 -> 131.8996 | J138: =J127+J137 -> 965.08 | L138: 86.69
A139: 2 | B139: 3 | C139: Завтрак | D139: гор.блюдо | E139: Рассольник Ленинградский с мясом птицы, со сметаной | F139: 265 | G139: 5.60 | H139: 9.06 | I139: 11.98 | J139: 157.42 | K139: 96
D141: гор.напиток | E141: Напиток из сухофруктов | F141: 200 | G141: 0.66 | H141: 0.09 | I141: 22.03 | J141: 92.90
D142: хлеб | E142: Хлеб ржаной | F142: 30 | G142: 1.98 | H142: 0.36 | I142: 11.88 | J142: 59.40
D143: фрукты
L145: 22.5
D146: итого | F146: =SUM(F139:F145) -> 495 | G146: =SUM(G139:G145) -> 8.242 | H146: 9.51 | I146: 45.89 | J146: 309.72 | L146: =SUM(L139:L145) -> 22.5
A147: =A139 -> 2 | B147: =B139 -> 3 | C147: Обед | D147: закуска | E147: Салат из свеклы отварной | F147: 60 | G147: 0.84 | H147: 3.61 | I147: 4.96 | J147: 55.68 | K147: 52
D148: 1 блюдо
D149: 2 блюдо | E149: Котлеты из мяса кур в томатном соусе с овощами | F149: 100 | G149: 10.52 | H149: 6.75 | I149: 21.90 | J149: 182.90 | K149: 295
D150: гарнир | E150: Пюре картофельное | F150: 180 | G150: 3.68 | H150: 5.76 | I150: 20.53 | J150: 154.70 | K150: 312
D151: напиток | E151: Чай с сахаром | F151: 200 | G151: 0.07 | H151: 0.02 | I151: 10.00 | J151: 40.00 | K151: 376
D152: хлеб бел. | E152: Хлеб пшеничный | F152: 20 | G152: 1.52 | H152: 0.16 | I152: 9.84 | J152: 47.00
D153: хлеб черн. | E153: Хлеб ржаной | F153: 20 | G153: 1.32 | H153: 0.24 | I153: 7.92 | J153: 39.60
L155: 64.19
D156: итого | F156: =SUM(F147:F155) -> 480 | G156: =SUM(G147:G155) -> 17.9522 | H156: 16.539 | I156: 75.1428 | J156: 519.88 | L156: =SUM(L147:L155) -> 64.19
A157: =A139 -> 2 | B157: =B139 -> 3 | C157: Итого за день: | F157: =F146+F156 -> 975 | G157: =G146+G156 -> 26.1942 | H157: =H146+H156 -> 26.049 | I157: =I146+I156 -> 121.0328 | J157: =J146+J156 -> 829.6 | L157: 86.69
A158: 2 | B158: 4 | C158: Завтрак | D158: гор.блюдо | E158: Суп картофельный с мясными фрикадельками | F158: 261 | G158: 4.54 | H158: 4.12 | I158: 16.95 | J158: 135.57 | K158: 105
D160: гор.напиток | E160: Чай с сахаром и лимоном | F160: 200 | G160: 0.13 | H160: 0.02 | I160: 10.2 | J160: 42.00 | K160: 377
D161: хлеб | E161: Хлеб ржаной | F161: 30 | G161: 1.98 | H161: 0.36 | I161: 11.88 | J161: 59.40
D162: фрукты
L164: 22.5
D165: итого | F165: =SUM(F158:F164) -> 491 | G165: =SUM(G158:G164) -> 6.64667 | H165: 4.49703 | I165: 39.03195 | J165: 236.971 | L165: =SUM(L158:L164) -> 22.5
A166: =A158 -> 2 | B166: =B158 -> 4 | C166: Обед | D166: закуска | E166: Плоды и ягоды свежие (яблоки) | F166: 100 | G166: 0.4 | H166: 0.40 | I166: 9.8 | J166: 47.0
D167: 1 блюдо
D168: 2 блюдо | E168: Тефтели мясные в сметанно-томатном соусе | F168: 100 | G168: 7.28 | H168: 11.79 | I168: 8.74 | J168: 123.99 | K168: 279
D169: гарнир | E169: Макаронные изделия отварные | F169: 180 | G169: =G168*180/183 -> 7.16 | H169: =H168*180/183 -> 11.60 | I169: 8.59 | J169: 121.96 | K169: 203
D170: напиток | E170: Напиток из шиповника | F170: 200 | G170: 0.68 | H170: 0.28 | I170: 10.78 | J170: 48.20 | K170: 388
D171: хлеб бел. | E171: Хлеб пшеничный | F171: 20 | G171: 2.66 | H171: 0.28 | I171: 17.22 | J171: 82.25
D172: хлеб черн. | E172: Хлеб ржаной | F172: 20 | G172: 2.31 | H172: 0.42 | I172: 13.86 | J172: 69.30
L174: 64.19
D175: итого | F175: =SUM(F166:F174) -> 440 | G175: =SUM(G166:G174) -> 20.49619344 | H175: 24.76551475 | I175: 68.99196066 | J175: 492.697377 | L175: =SUM(L166:L174) -> 64.19
A176: =A158 -> 2 | B176: =B158 -> 4 | C176: Итого за день: | F176: =F165+F175 -> 931 | G176: =G165+G175 -> 27.14286344 | H176: =H165+H175 -> 29.26254475 | I176: =I165+I175 -> 108.0239107 | J176: =J165+J175 -> 729.668377 | L176: 86.69
A177: 2 | B177: 5 | C177: Завтрак | D177: гор.блюдо | E177: Суп-лапша домашняя с мясом птицы | F177: 260 | G177: 5.65 | H177: 6.10 | I177: 11.62 | J177: 132.55
D179: гор.напиток | E179: Сок (нектар) разливной | F179: 200 | G179: 1.00 | H179: 0.00 | I179: 20.20 | J179: 84.80
D180: хлеб | E180: Хлеб ржаной | F180: 30 | G180: 1.98 | H180: 0.36 | I180: 11.88 | J180: 59.40
D181: фрукты
L183: 22.5
D184: итого | F184: =SUM(F177:F183) -> 490 | G184: =SUM(G177:G183) -> 8.625 | H184: 6.4625 | I184: 43.7 | J184: 276.75 | L184: =SUM(L177:L183) -> 22.5
A185: =A177 -> 2 | B185: =B177 -> 5 | C185: Обед | D185: закуска | E185: Бутерброд с маслом сливочным и сыром | F185: 60 | G185: 7.03 | H185: 7.94 | I185: 19.75 | J185: 178.50 | K185: 3
D186: 1 блюдо
D187: 2 блюдо
D188: гарнир | E188: Овощи тушеные с мясным фаршем | F188: 250 | G188: 12.33 | H188: 13.28 | I188: 46.58 | J188: 346.67
D189: напиток | E189: Чай "Витаминный" | F189: 200 | G189: 0.24 | H189: 0.09 | I189: 12.000 | J189: 54
D190: хлеб бел. | E190: Печенье | F190: 40 | G190: 1.7 | H190: 3.7 | I190: 2.85 | J190: 21.5
D191: хлеб черн. | E191: Хлеб ржаной | F191: 20 | G191: 1.32 | H191: 0.24 | I191: 7.92 | J191: 39.60
L193: 64.19
D194: итого | F194: =SUM(F185:F193) -> 320 | G194: =SUM(G185:G193) -> 22.62 | H194: 25.245 | I194: 89.1 | J194: 640.47 | L194: =SUM(L185:L193) -> 64.19
A195: =A177 -> 2 | B195: =B177 -> 5 | C195: Итого за день: | F195: =F184+F194 -> 810 | G195: =G184+G194 -> 31.245 | H195: =H184+H194 -> 31.7075 | I195: =I184+I194 -> 132.8 | J195: =J184+J194 -> 917.22 | L195: 86.69
C196: Среднее значение за период: | F196: =(F24+F43+F62+F81+F100+F119+F138+F157+F176+F195)/(IF(F24=0,0,1)+IF(F43=0,0,1)+IF(F62=0,0,1)+IF(F81=0,0,1)+IF(F100=0,0,1)+IF(F119=0,0,1)+IF(F138=0,0,1)+IF(F157=0,0,1)+IF(F176=0,0,1)+IF(F195=0,0,1)) -> 976.3 | G196: =(G24+G43+G62+G81+G100+G119+G138+G157+G176+G195)/(IF(G24=0,0,1)+IF(G43=0,0,1)+IF(G62=0,0,1)+IF(G81=0,0,1)+IF(G100=0,0,1)+IF(G119=0,0,1)+IF(G138=0,0,1)+IF(G157=0,0,1)+IF(G176=0,0,1)+IF(G195=0,0,1)) -> 28.4226476 | H196: 28.2021057 | I196: 123.5723543 | J196: 869.0039802 | L196: =(L24+L43+L62+L81+L100+L119+L138+L157+L176+L195)/(IF(L24=0,0,1)+IF(L43=0,0,1)+IF(L62=0,0,1)+IF(L81=0,0,1)+IF(L100=0,0,1)+IF(L119=0,0,1)+IF(L138=0,0,1)+IF(L157=0,0,1)+IF(L176=0,0,1)+IF(L195=0,0,1)) -> 86.69
